fUST/lending_fUST_20250930
["ID","MTS","AMOUNT","RATE_DAILY","PERIOD"]
[388426193,1759164663110,-655.65,0.00024361,2]
[388426194,1759164663119,-597.01,0.00024361,2]
[388426195,1759164663129,-480.0,0.00024361,2]
[388426196,1759164663144,-480.0,0.00024361,2]
[388426197,1759164663163,-480.0,0.00024361,2]
[388426198,1759164663172,-480.0,0.00024361,2]
[388426199,1759164663181,-480.0,0.00024361,2]
[388426200,1759164663191,-603.18,0.00024361,2]
[388426201,1759164663200,-480.0,0.00024361,2]
[388426202,1759164663209,-607.19,0.00024361,2]
[388426203,1759164663218,-590.23,0.00024361,2]
[388426204,1759164663227,-480.0,0.00024361,2]
[388426205,1759164663236,-151.0,0.00024361,7]
[388426206,1759164663246,-173.461969,0.00024361,7]
[388426207,1759164663255,-731.82,0.00024361,2]
[388426208,1759164663265,-480.0,0.00024361,2]
[388426209,1759164663274,-151.0,0.00024361,7]
[388426210,1759164663283,-500.0,0.00024361,2]
[388426211,1759164663292,-772.759636,0.00024361,7]
[388426212,1759164663301,-772.759636,0.00024361,7]
[388426213,1759164663310,-151.0,0.00024361,7]
[388426214,1759164663320,-772.759636,0.00024361,7]
[388426215,1759164663329,-772.759636,0.00024361,7]
[388426216,1759164663339,-151.0,0.00024361,7]
[388426217,1759164663349,-733.26,0.00024361,2]
[388426218,1759164663359,-480.0,0.00024361,2]
[388426219,1759164663368,-480.0,0.00024361,2]
[388426220,1759164663377,-480.0,0.00024361,2]
[388426221,1759164663386,-159.610699,0.00024361,7]
[388426222,1759164663395,-480.0,0.00024361,2]
[388426223,1759164663404,-1406.03,0.00024361,2]
[388426224,1759164663413,-480.0,0.00024361,2]
[388426225,1759164663422,-746.03,0.00024361,2]
[388426226,1759164663431,-2264.347528,0.00024361,7]
[388426227,1759164663440,-2264.347528,0.00024361,7]
[388426228,1759164663449,-2264.347528,0.00024361,7]
[388426229,1759164663458,-2264.347528,0.00024361,7]
[388426230,1759164663467,-668.39,0.00024361,2]
[388426231,1759164663476,-592.17,0.00024361,2]
[388426232,1759164663485,-151.0,0.00024361,7]
[388426233,1759164663494,-480.0,0.00024361,2]
[388426234,1759164663504,-647.59,0.00024361,2]
[388426235,1759164663513,-678.25,0.00024361,2]
[388426236,1759164663522,-480.0,0.00024361,2]
[388426237,1759164663531,-767.6,0.00024361,2]
[388426238,1759164663540,-481.16,0.00024361,2]
[388426239,1759164663548,-811.37,0.00024361,2]
[388426240,1759164663558,-480.0,0.00024361,2]
[388426241,1759164663567,-1578.7,0.00024361,2]
[388426242,1759164663576,-493.87,0.00024361,2]
[388426243,1759164663586,-480.0,0.00024361,2]
[388426244,1759164663595,-480.0,0.00024361,2]
[388426245,1759164663604,-674.33,0.00024361,2]
[388426246,1759164663613,-480.0,0.00024361,2]
[388426247,1759164663623,-480.0,0.00024361,2]
[388426248,1759164663632,-480.0,0.00024361,2]
[388426249,1759164663641,-480.0,0.00024361,2]
[388426250,1759164663650,-480.0,0.00024361,2]
[388426251,1759164663659,-882.45,0.00024361,2]
[388426252,1759164663669,-480.0,0.00024361,2]
[388426253,1759164663678,-2292.38,0.00024361,2]
[388426254,1759164663687,-524.21,0.00024361,2]
[388426255,1759164663696,-681.01,0.00024361,2]
[388426256,1759164663705,-480.0,0.00024361,2]
[388426257,1759164663716,-1345.86,0.00024361,2]
[388426258,1759164663726,-480.0,0.00024361,2]
[388426259,1759164663735,-2503.13,0.00024361,2]
[388426260,1759164663745,-532.47,0.00024361,2]
[388426261,1759164663754,-480.0,0.00024361,2]
[388426262,1759164663763,-480.0,0.00024361,2]
[388426263,1759164663772,-661.84,0.00024361,2]
[388426264,1759164663782,-480.0,0.00024361,2]
[388426265,1759164663791,-649.63,0.00024361,2]
[388426266,1759164663801,-539.09,0.00024361,2]
[388426267,1759164663811,-830.96,0.00024361,2]
[388426268,1759164663821,-505.8,0.00024361,2]
[388426269,1759164663830,-499.22,0.00024361,2]
[388426270,1759164663843,-490.88353913,0.00024361,2]
[388426271,1759164663853,-1034.38,0.00024361,2]
[388426272,1759164663863,-480.0,0.00024361,2]
[388426273,1759164663873,-485.31297155,0.00024376,2]
[388426274,1759164663882,-480.0,0.00024376,2]
[388426275,1759164663892,-151.0,0.00024376,7]
[388426276,1759164663904,-151.0,0.00024376,7]
[388426277,1759164663913,-151.0,0.00024376,7]
[388426278,1759164663922,-151.0,0.00024376,7]
[388426279,1759164663931,-151.0,0.00024376,7]
[388426280,1759164663941,-151.0,0.00024376,7]
[388426281,1759164663950,-151.0,0.00024376,7]
[388426282,1759164663959,-151.0,0.00024376,7]
[388426283,1759164663968,-151.0,0.00024376,7]
[388426284,1759164663976,-151.0,0.00024376,7]
[388426285,1759164663986,-151.0,0.00024376,7]
[388426286,1759164663995,-151.0,0.00024376,7]
[388426287,1759164664004,-151.0,0.00024376,7]
[388426288,1759164664013,-151.0,0.00024376,7]
[388426289,1759164664022,-151.0,0.00024376,7]
[388426290,1759164664031,-151.0,0.00024376,7]
[388426291,1759164664039,-151.0,0.00024376,7]
[388426292,1759164664048,-185.584951,0.00024376,7]
[388426293,1759164664057,-151.0,0.00024376,7]
[388426294,1759164664066,-151.0,0.00024376,7]
[388426295,1759164664075,-151.0,0.00024376,7]
[388426296,1759164664084,-151.0,0.00024376,7]
[388426297,1759164664094,-151.0,0.00024376,7]
[388426298,1759164664103,-151.0,0.00024376,7]
[388426299,1759164664112,-155.0371,0.00024376,7]
[388426300,1759164664122,-153.313215,0.00024376,7]
[388426301,1759164664131,-151.0,0.00024376,7]
[388426302,1759164664142,-151.0,0.00024376,7]
[388426303,1759164664151,-151.0,0.00024376,7]
[388426304,1759164664160,-151.0,0.00024376,7]
[388426305,1759164664169,-164.207753,0.00024376,7]
[388426306,1759164664178,-401.230282,0.00024376,7]
[388426307,1759164664188,-559.708988,0.00024376,7]
[388426308,1759164664198,-401.230282,0.00024376,7]
[388426309,1759164664207,-559.708988,0.00024376,7]
[388426310,1759164664218,-151.0,0.00024376,7]
[388426311,1759164664227,-401.230282,0.00024376,7]
[388426312,1759164664236,-559.708988,0.00024376,7]
[388426313,1759164664244,-401.230282,0.00024376,7]
[388426314,1759164664253,-559.708988,0.00024376,7]
[388426315,1759164664262,-151.0,0.00024376,7]
[388426316,1759164664271,-151.0,0.00024376,7]
[388426317,1759164664280,-151.0,0.00024376,7]
[388426318,1759164664290,-151.0,0.00024376,7]
[388426319,1759164664299,-480.0,0.00024382,2]
[388426320,1759164664307,-480.0,0.00024382,2]
[388426321,1759164664316,-480.0,0.00024383,2]
[388426322,1759164664325,-480.0,0.00024383,2]
[388426323,1759164664334,-480.0,0.00024383,2]
[388426324,1759164664343,-1000.0,0.00024383,5]
[388426325,1759164664352,-533.25,0.00024384,2]
[388426326,1759164664362,-480.0,0.00024384,2]
[388426327,1759164664371,-480.0,0.00024384,2]
[388426328,1759164664379,-155.0,0.0002442,2]
[388426329,1759164664388,-1000.0,0.00024421,2]
[388426330,1759164664397,-500.0,0.00024421,2]
[388426331,1759164664406,-1000.0,0.00024421,2]
[388426332,1759164664417,-500.0,0.00024421,2]
[388426333,1759164664426,-1000.0,0.00024421,2]
[388426334,1759164664434,-1000.0,0.00024421,2]
[388426335,1759164664443,-402.36427122,0.00024421,2]
[388426336,1759164664452,-1105.27830802,0.00024421,2]
[388426337,1759164664462,-756.75532896,0.00024421,2]
[388426338,1759164664471,-500.0,0.00024421,2]
[388426339,1759164664480,-1000.0,0.00024421,2]
[388426340,1759164664489,-1000.0,0.00024421,2]
[388426341,1759164664498,-500.0,0.00024421,2]
[388426342,1759164664507,-1000.0,0.00024421,2]
[388426343,1759164664515,-1000.0,0.00024421,2]
[388426344,1759164664524,-578.408847,0.00024421,2]
[388426345,1759164665528,-480.0,0.00023437,2]
[388426346,1759164665538,-151.0,0.00023451,2]
[388426347,1759164665548,-151.0,0.00023451,2]
[388426348,1759164665558,-151.0,0.00023451,2]
[388426349,1759164665568,-175.26,0.00023464,2]
[388426350,1759164665577,-200.0,0.00023465,10]
[388426351,1759164665588,-200.0,0.00023465,10]
[388426352,1759164665598,-200.0,0.00023465,10]
[388426353,1759164665607,-200.0,0.00023465,10]
[388426354,1759164665616,-200.0,0.00023465,10]
[388426355,1759164665626,-200.0,0.00023465,10]
[388426356,1759164665636,-480.0,0.00023711,2]
[388426357,1759164665646,-175.26,0.00023738,2]
[388426358,1759164665656,-36.48,0.00023985,2]
[388426359,1759164665831,-151.0,0.00023451,2]
[388426360,1759164665841,-151.0,0.00023451,2]
[388426361,1759164665850,-151.0,0.00023451,2]
[388426362,1759164665859,-200.0,0.00023465,10]
[388426363,1759164665869,-200.0,0.00023465,10]
[388426364,1759164665878,-200.0,0.00023465,10]
[388426365,1759164665887,-200.0,0.00023465,10]
[388426366,1759164665896,-200.0,0.00023465,10]
[388426367,1759164665905,-200.0,0.00023465,10]
[388426368,1759164665914,-200.0,0.00023465,10]
[388426369,1759164665923,-200.0,0.00023465,10]
[388426370,1759164665933,-443.52,0.00023985,2]
[388426371,1759164665942,-175.2703944,0.00024012,2]
[388426372,1759164665952,-480.0,0.00024259,2]
[388426373,1759164665962,-480.0,0.00024361,2]
[388426374,1759164665971,-479.73752007,0.00024421,2]
[388426375,1759164665980,-1000.0,0.00024421,2]
[388426376,1759164665990,-1000.0,0.00024421,2]
[388426377,1759164665999,-151.0,0.00024421,7]
[388426378,1759164666007,-151.0,0.00024421,7]
[388426379,1759164666016,-151.0,0.00024421,7]
[388426380,1759164666025,-151.0,0.00024421,7]
[388426381,1759164666034,-151.0,0.00024421,7]
[388426382,1759164666043,-151.0,0.00024421,7]
[388426383,1759164666053,-151.0,0.00024421,7]
[388426384,1759164666062,-151.0,0.00024421,7]
[388426385,1759164666071,-151.0,0.00024421,7]
[388426386,1759164666081,-151.0,0.00024421,7]
[388426387,1759164666091,-447.937231,0.00024421,7]
[388426388,1759164666100,-447.937231,0.00024421,7]
[388426389,1759164666109,-447.937231,0.00024421,7]
[388426390,1759164666119,-447.937231,0.00024421,7]
[388426391,1759164666128,-151.0,0.00024421,7]
[388426392,1759164666139,-265.611618,0.00024421,7]
[388426393,1759164666155,-151.0,0.00024421,7]
[388426394,1759164666164,-151.0,0.00024421,7]
[388426395,1759164666174,-461.701477,0.00024421,7]
[388426396,1759164666186,-461.701477,0.00024421,7]
[388426397,1759164666195,-461.701477,0.00024421,7]
[388426398,1759164666205,-461.701477,0.00024421,7]
[388426399,1759164666214,-151.0,0.00024421,7]
[388426400,1759164666230,-151.0,0.00024421,7]
[388426401,1759164666239,-151.0,0.00024421,7]
[388426402,1759164666249,-157.08,0.00024421,2]
[388426403,1759164666259,-160.0,0.00024429,2]
[388426404,1759164666269,-500.0,0.00024473,2]
[388426405,1759164666279,-500.0,0.00024473,2]
[388426406,1759164666288,-500.0,0.00024473,2]
[388426407,1759164666298,-341.11063972,0.00024473,2]
[388426408,1759164666307,-500.0,0.00024473,2]
[388426409,1759164666316,-152.114971,0.00024473,7]
[388426410,1759164666325,-151.0,0.00024473,7]
[388426411,1759164666334,-151.0,0.00024473,7]
[388426412,1759164666343,-151.0,0.00024473,7]
[388426413,1759164666352,-151.0,0.00024473,7]
[388426414,1759164666361,-151.0,0.00024473,7]
[388426415,1759164666370,-151.0,0.00024473,7]
[388426416,1759164666379,-151.0,0.00024473,7]
[388426417,1759164666387,-152.992248,0.00024473,7]
[388426418,1759164666397,-480.0,0.00024483,2]
[388426419,1759164666406,-153.810138,0.00024483,7]
[388426420,1759164666415,-151.0,0.00024483,7]
[388426421,1759164666424,-151.0,0.00024483,7]
[388426422,1759164666433,-151.0,0.00024483,7]
[388426423,1759164666442,-151.0,0.00024483,7]
[388426424,1759164666451,-151.0,0.00024483,7]
[388426425,1759164666460,-151.0,0.00024483,7]
[388426426,1759164666469,-151.0,0.00024483,7]
[388426427,1759164666478,-151.0,0.00024483,7]
[388426428,1759164666487,-151.0,0.00024483,7]
[388426429,1759164666497,-189.862779,0.00024483,7]
[388426430,1759164666506,-160.0,0.00024485,7]
[388426431,1759164666515,-575.25,0.00024488,2]
[388426432,1759164666524,-537.22,0.00024488,2]
[388426433,1759164666532,-480.0,0.00024488,2]
[388426434,1759164666542,-480.0,0.00024488,2]
[388426435,1759164666551,-480.0,0.00024488,2]
[388426436,1759164666560,-574.14,0.00024488,2]
[388426437,1759164666569,-480.0,0.00024488,2]
[388426438,1759164666578,-480.0,0.00024488,2]
[388426439,1759164666587,-480.0,0.00024488,2]
[388426440,1759164666596,-480.0,0.00024488,2]
[388426441,1759164666605,-496.18,0.00024488,2]
[388426442,1759164666614,-480.0,0.00024488,2]
[388426443,1759164666623,-480.0,0.00024488,2]
[388426444,1759164666632,-531.62,0.00024488,2]
[388426445,1759164666641,-480.0,0.00024488,2]
[388426446,1759164666649,-598.54,0.00024488,2]
[388426447,1759164666657,-487.7,0.00024488,2]
[388426448,1759164666666,-480.0,0.00024488,2]
[388426449,1759164666675,-480.0,0.00024488,2]
[388426450,1759164666684,-480.0,0.00024488,2]
[388426451,1759164666693,-151.0,0.00024488,7]
[388426452,1759164666702,-151.0,0.00024488,7]
[388426453,1759164666711,-166.061554,0.00024488,7]
[388426454,1759164666721,-151.0,0.00024488,7]
[388426455,1759164666731,-151.0,0.00024488,7]
[388426456,1759164666741,-151.0,0.00024488,7]
[388426457,1759164666750,-151.0,0.00024488,7]
[388426458,1759164666759,-151.0,0.00024488,7]
[388426459,1759164666768,-151.0,0.00024488,7]
[388426460,1759164666777,-151.0,0.00024488,7]
[388426461,1759164666787,-1000.0,0.00024521,2]
[388426462,1759164666795,-1000.0,0.00024521,2]
[388426463,1759164666805,-1000.0,0.00024521,2]
[388426464,1759164666814,-634.76196504,0.00024521,2]
[388426465,1759164666823,-500.0,0.00024521,2]
[388426466,1759164666832,-1000.0,0.00024521,2]
[388426467,1759164666841,-151.0,0.00024521,7]
[388426468,1759164666850,-151.0,0.00024521,7]
[388426469,1759164666859,-177.506764,0.00024521,7]
[388426470,1759164666867,-151.0,0.00024521,7]
[388426471,1759164666877,-151.0,0.00024521,7]
[388426472,1759164666886,-10000.0,0.00024521,7]
[388426473,1759164666896,-10000.0,0.00024521,7]
[388426474,1759164666905,-738.31476577,0.00024521,7]
[388426475,1759164666921,-200.0,0.00023465,10]
[388426476,1759164666930,-310.57029197,0.00024521,7]
[388426477,1759164667201,5000.0,0.00023401,2]
[388426478,1759164673911,5000.0,0.00023401,2]
[388426479,1759164676769,-480.0,0.00023437,2]
[388426480,1759164678176,-355.54356992,0.00023437,2]
[388426481,1759164680362,-124.45643008,0.00023437,2]
[388426482,1759164680383,-40.0,0.00023437,2]
[388426483,1759164682333,-335.54356992,0.00023437,2]
[388426484,1759164689610,-104.45643008,0.00023437,2]
[388426485,1759164689632,-156.38364652,0.00023437,2]
[388426486,1759164715389,-323.61635348,0.00023437,2]
[388426487,1759164715411,-106.02625072,0.00023437,2]
[388426488,1759164715709,666.0,0.00022507,2]
[388426499,1759164740382,5000.0,0.00023401,2]
[388426509,1759164768120,370000.0,0.00023354,2]
[388426510,1759164863269,-178.97959773,0.00023428,3]
[388426512,1759164871332,-180.0,0.00023428,3]
[388426513,1759164877203,200.0,0.00028,120]
[388426514,1759164883032,300.0,0.000181,2]
[388426515,1759164884155,-1033.8,0.00023427,3]
[388426516,1759164884191,-516.9,0.00023427,3]
[388426517,1759164884221,-1708.62040227,0.00023428,3]
[388426518,1759164884251,-500.0,0.00023435,2]
[388426519,1759164884279,-624.6380774,0.00023435,2]
[388426520,1759164884310,-500.0,0.00023435,2]
[388426521,1759164884489,-500.0,0.00023435,2]
[388426522,1759164884517,-500.0,0.00023435,2]
[388426523,1759164884544,-500.0,0.00023435,2]
[388426524,1759164884574,-500.0,0.00023435,2]
[388426525,1759164884602,-500.0,0.00023435,2]
[388426526,1759164884629,-348.64106075,0.00023435,2]
[388426527,1759164884658,-500.0,0.00023435,2]
[388426528,1759164884688,-500.0,0.00023435,2]
[388426529,1759164884715,-500.0,0.00023435,2]
[388426530,1759164884744,-500.0,0.00023435,2]
[388426531,1759164884772,-64.15728288,0.00023435,2]
[388426532,1759164884891,-174.41331274,0.00023435,2]
[388426533,1759164884921,-500.0,0.00023435,2]
[388426534,1759164884948,-500.0,0.00023435,2]
[388426535,1759164884973,-500.0,0.00023435,2]
[388426536,1759164885001,-500.0,0.00023435,2]
[388426537,1759164885030,-500.0,0.00023435,2]
[388426538,1759164885058,-500.0,0.00023435,2]
[388426539,1759164885088,-380.00487791,0.00023435,2]
[388426540,1759164885117,-500.0,0.00023435,2]
[388426541,1759164885147,-500.0,0.00023435,2]
[388426542,1759164885176,-391.1736187,0.00023435,2]
[388426543,1759164885335,-108.8263813,0.00023435,2]
[388426544,1759164885363,-500.0,0.00023435,2]
[388426545,1759164885392,-500.0,0.00023435,2]
[388426546,1759164885419,-272.11097928,0.00023435,2]
[388426547,1759164885448,-500.0,0.00023435,2]
[388426548,1759164885475,-500.0,0.00023435,2]
[388426549,1759164885505,-500.0,0.00023435,2]
[388426550,1759164885534,-500.0,0.00023435,2]
[388426551,1759164885564,-500.0,0.00023435,2]
[388426552,1759164885593,-500.0,0.00023435,2]
[388426553,1759164885621,-500.0,0.00023435,2]
[388426554,1759164885752,-500.0,0.00023435,2]
[388426555,1759164885780,-500.0,0.00023435,2]
[388426556,1759164885810,-500.0,0.00023435,2]
[388426557,1759164885839,-330.88111953,0.00023435,2]
[388426558,1759164885869,-500.0,0.00023435,2]
[388426559,1759164885898,-500.0,0.00023435,2]
[388426560,1759164885927,-500.0,0.00023435,2]
[388426561,1759164885956,-500.0,0.00023435,2]
[388426562,1759164885984,-500.0,0.00023435,2]
[388426563,1759164886015,-500.0,0.00023435,2]
[388426564,1759164886214,300.0,0.000234,2]
[388426565,1759164886367,-500.0,0.00023435,2]
[388426566,1759164886402,-500.0,0.00023435,2]
[388426567,1759164886435,-500.0,0.00023435,2]
[388426568,1759164886469,-500.0,0.00023435,2]
[388426569,1759164886504,-500.0,0.00023435,2]
[388426570,1759164886536,-500.0,0.00023435,2]
[388426571,1759164886569,-500.0,0.00023435,2]
[388426572,1759164886605,-500.0,0.00023435,2]
[388426573,1759164886639,-500.0,0.00023435,2]
[388426574,1759164886671,-500.0,0.00023435,2]
[388426575,1759164887108,-500.0,0.00023435,2]
[388426576,1759164887137,-500.0,0.00023435,2]
[388426577,1759164887168,-500.0,0.00023435,2]
[388426578,1759164887197,-500.0,0.00023435,2]
[388426579,1759164887230,-500.0,0.00023435,2]
[388426580,1759164887257,-500.0,0.00023435,2]
[388426581,1759164887285,-500.0,0.00023435,2]
[388426582,1759164887315,-500.0,0.00023435,2]
[388426583,1759164887343,-500.0,0.00023435,2]
[388426584,1759164887372,-500.0,0.00023435,2]
[388426585,1759164887510,-500.0,0.00023435,2]
[388426586,1759164887537,-500.0,0.00023435,2]
[388426587,1759164887567,-500.0,0.00023435,2]
[388426588,1759164887595,-500.0,0.00023435,2]
[388426589,1759164887624,-603.52324842,0.00023435,2]
[388426590,1759164887653,-500.0,0.00023435,2]
[388426591,1759164887680,-500.0,0.00023435,2]
[388426592,1759164887708,-500.0,0.00023435,2]
[388426593,1759164887735,-628.1677202,0.00023435,2]
[388426594,1759164887762,-56.62806276,0.00023435,2]
[388426595,1759164887933,-423.37193724,0.00023435,2]
[388426596,1759164887960,-480.0,0.00023435,2]
[388426597,1759164887987,-480.0,0.00023435,2]
[388426598,1759164888015,-300.0,0.00023435,2]
[388426599,1759164888041,-480.0,0.00023435,2]
[388426600,1759164888069,-480.0,0.00023435,2]
[388426601,1759164888098,-480.0,0.00023435,2]
[388426602,1759164888127,-209.71412741,0.00023435,2]
[388426603,1759164888156,-480.0,0.00023435,2]
[388426604,1759164888186,-480.0,0.00023435,2]
[388426605,1759164889469,-167.27394768,0.00023436,2]
[388426606,1759164891319,1000.0,0.00023287,5]
[388426607,1759164894088,300.0,0.000181,2]
[388426608,1759164894554,-389.1566261,0.00023436,2]
[388426609,1759164894659,-10000.01,0.00023436,2]
[388426610,1759164894814,-10000.01,0.00023436,2]
[388426611,1759164896963,300.0,0.000234,2]
[388426612,1759164905042,300.0,0.000181,2]
[388426614,1759164907918,300.0,0.000234,2]
[388426615,1759164914736,1000.0,0.00022437,2]
[388426617,1759164915827,300.0,0.000181,2]
[388426618,1759164918203,168.0,0.0002337,2]
[388426619,1759164919000,300.0,0.000234,2]
[388426620,1759164923971,-480.0,0.00023434,2]
[388426621,1759164924000,-480.0,0.00023435,2]
[388426622,1759164924028,-300.0,0.00023435,2]
[388426623,1759164924056,-300.0,0.00023435,2]
[388426624,1759164924087,-1200.0,0.00023435,2]
[388426625,1759164924209,-4480.01,0.00023436,2]
[388426626,1759164924252,-10000.01,0.00023436,2]
[388426627,1759164924281,-10000.01,0.00023436,2]
[388426628,1759164924453,-4963.51942622,0.00023436,2]
[388426629,1759164924491,-72.97114756,0.00023436,2]
[388426630,1759164924595,-1127.02885244,0.00023436,2]
[388426631,1759164924623,-480.0,0.00023436,2]
[388426632,1759164924650,-480.0,0.00023436,2]
[388426633,1759164924678,-480.0,0.00023436,2]
[388426634,1759164924706,-604.83,0.00023436,2]
[388426635,1759164924734,-687.71,0.00023436,2]
[388426636,1759164924761,-480.0,0.00023436,2]
[388426637,1759164924787,-480.0,0.00023436,2]
[388426638,1759164924936,-996.14,0.00023436,2]
[388426639,1759164924963,-352.14990458,0.00023436,2]
[388426640,1759164924991,-480.0,0.00023436,2]
[388426641,1759164925020,-480.0,0.00023436,2]
[388426642,1759164925048,-2055.04,0.00023436,2]
[388426643,1759164925167,-2791.21,0.00023436,2]
[388426644,1759164925196,-480.0,0.00023436,2]
[388426645,1759164925226,-480.0,0.00023436,2]
[388426646,1759164925254,-480.0,0.00023436,2]
[388426647,1759164925284,-480.0,0.00023436,2]
[388426648,1759164925315,-97.59,0.00023436,2]
[388426649,1759164925500,-96.63248596,0.00023436,2]
[388426650,1759164925518,-285.77751404,0.00023436,2]
[388426651,1759164925528,-194.22248596,0.00023436,2]
[388426652,1759164925542,-480.0,0.00023436,2]
[388426653,1759164925560,-480.0,0.00023436,2]
[388426654,1759164925574,-383.01751404,0.00023436,2]
[388426655,1759164925583,-96.98248596,0.00023436,2]
[388426656,1759164927184,300.0,0.000181,2]
[388426657,1759164930011,300.0,0.000234,2]
[388426658,1759164934115,-480.0,0.00023434,2]
[388426659,1759164934144,-383.01751404,0.00023436,2]
[388426660,1759164934173,-480.0,0.00023436,2]
[388426661,1759164934203,-480.0,0.00023436,2]
[388426662,1759164934237,-2341.95497192,0.00023436,2]
[388426663,1759164934322,-1670.06502808,0.00023436,2]
[388426664,1759164934365,-956.21,0.00023436,2]
[388426665,1759164934395,-480.0,0.00023436,2]
[388426666,1759164934424,-480.0,0.00023436,2]
[388426667,1759164934455,-516.67,0.00023436,2]
[388426668,1759164934485,-1124.24,0.00023436,2]
[388426669,1759164934514,-480.0,0.00023436,2]
[388426670,1759164934551,20050.73493184,0.00023338,2]
[388426671,1759164934583,349949.26506816,0.00023338,2]
[388426672,1759164934686,-1925.77,0.00023436,2]
[388426673,1759164934721,-240.07,0.00023436,2]
[388426674,1759164934749,-2913.4,0.00023436,2]
[388426675,1759164934778,-480.0,0.00023436,2]
[388426676,1759164934807,-912.81,0.00023436,2]
[388426677,1759164934836,-427.45,0.00023436,2]
[388426678,1759164935031,-52.55,0.00023436,2]
[388426679,1759164935061,-480.0,0.00023436,2]
[388426680,1759164935091,-480.0,0.00023436,2]
[388426681,1759164935122,-480.0,0.00023436,2]
[388426682,1759164935155,-1041.29,0.00023436,2]
[388426683,1759164935186,-500.0,0.00023437,2]
[388426684,1759164935216,-438.94374928,0.00023437,2]
[388426685,1759164935249,-480.0,0.00023437,2]
[388426686,1759164935278,-646.86,0.00023437,2]
[388426687,1759164935308,-283.13250144,0.00023437,2]
[388426688,1759164935395,-234.45749856,0.00023437,2]
[388426689,1759164935424,-1200.82,0.00023437,2]
[388426690,1759164935453,-1368.52,0.00023437,2]
[388426691,1759164935484,-535.67,0.00023437,2]
[388426692,1759164935516,-611.73,0.00023437,2]
[388426693,1759164935548,-942.86500288,0.00023437,2]
[388426694,1759164936295,-211.88499712,0.00023437,2]
[388426695,1759164936309,-371.3212536,0.00023437,2]
[388426696,1759164939883,300.0,0.000181,2]
[388426697,1759164940285,300.0,0.000234,2]
[388426698,1759164940386,5000.0,0.000234,2]
[388426699,1759164948438,3120.37479642,0.000234,2]
[388426700,1759164951290,300.0,0.000181,2]
[388426701,1759164952602,300.0,0.000234,2]
[388426702,1759164960326,200.0,0.000284,120]
[388426703,1759164962164,300.0,0.000181,2]
[388426704,1759164963122,300.0,0.000234,2]
[388426705,1759164963897,160.0,0.000234,2]
[388426706,1759164963924,4127.29926187,0.000234,2]
[388426707,1759164971853,5000.0,0.000234,2]
[388426708,1759164972424,43296.0831853,0.00022507,2]
[388426709,1759164973675,300.0,0.000234,2]
[388426710,1759164973791,300.0,0.000181,2]
[388426711,1759164984075,-480.0,0.00023434,2]
[388426712,1759164984106,-480.0,0.00023434,2]
[388426713,1759164984136,-480.0,0.00023434,2]
[388426714,1759164984168,-300.0,0.00023435,2]